[Event "XTX Markets London Masters 2024"]
[Site "London"]
[Date "2024.11.29"]
[Round "1.18"]
[White "Smith, Andrew Philip"]
[Black "Kistrup, Nicolai"]
[Result "0-1"]
[ECO "C22"]
[WhiteElo "2136"]
[BlackElo "2420"]
[Annotator "TA"]
[PlyCount "118"]
[EventDate "2024.11.28"]
[EventType "swiss"]
[EventCountry "ENG"]
[SourceTitle "playchess.com"]
[Source "ChessBase"]
[SourceQuality "1"]
[TimeControl "40/5400+30:1800+30"]

{[%evp 15,118,-22,-32,-39,0,-21,0,0,0,-4,0,0,0,0,27,23,20,36,46,53,83,79,76,76,81,0,85,76,76,62,73,73,74,79,73,64,78,67,96,97,97,109,107,83,212,0,0,-20,-15,-11,-18,-8,-20,-71,-71,-60,-58,-62,-71,-63,-68,-123,-125,-129,-128,-176,-159,-164,-150,-162,-118,-82,-6,-8,-8,-8,-8,-47,-43,-49,-44,-46,-47,-45,-46,-128,-76,-320,-208,-347,-154,-152,-80,-80,-80,-80,-80,-152,-75,-76,-76,-166,-136,-4133,-1488]} 1. e4 {[%emt 0:00:10]} e5 {[%emt 0:00:16]} 2. d4 {[%emt 0:00:16]} exd4 {[%emt 0:00:05]} 3. Qxd4 {[%emt 0:00:05]} Nc6 {[%emt 0:00:06]} 4. Qe3 {[%emt 0:00:07]} Nf6 {[%emt 0:00:05]} 5. Nc3 {[%emt 0:00:06]} Bb4 {[%emt 0:00:31]} 6. Bd2 {[%emt 0:00:09]} O-O {[%emt 0:00:19]} 7. O-O-O {[%emt 0:00:09]} Re8 {[%emt 0:01:17]} 8. Bc4 {[%emt 0:00:10]} d6 {[%emt 0:15:03]} 9. Nf3 {[%emt 0:00:47]} Na5 {[%emt 0:14:24]} 10. Be2 {[%emt 0:11:55]} Bc5 {[%emt 0:11:19]} 11. Qf4 {[%emt 0:08:28]} Nc6 {[%emt 0:18:06][%cal Oh7h6]} 12. Ng5 {[%emt 0:16:20]} h6 {[%emt 0:05:12]} 13. h4 $1 {[%emt 0:01:37]} Ne5 {[%emt 0:02:06][%cal Ob7b5]} (13... hxg5 14. hxg5 Nh7 15. Rxh7 $18) 14. Qg3 {[%emt 0:08:09][%cal Of2f4]} Neg4 {[%emt 0:04:40]} 15. Bxg4 $1 {[%emt 0:18:27]} Nxg4 {[%emt 0:01:42]} 16. Nh3 $1 {[%emt 0:00:13]} Bd4 {[%emt 0:07:35]} 17. f3 {[%emt 0:03:12][%cal Bf2f3,Bf3f4][%mdl 32]} Be5 {[%emt 0:03:04]} 18. Qe1 {[%emt 0:03:38]} Nf6 {[%emt 0:02:54]} 19. g4 {[%emt 0:04:54]} Nxg4 {[%emt 0:01:17]} 20. Qg1 {[%emt 0:06:14]} (20. fxg4 $16 {and Nf2 should not be overlooked} Bxg4 21. Nf2 Bxd1 22. Qxd1) 20... Nh2 {[%emt 0:04:45]} 21. f4 {[%emt 0:03:29]} Nf3 {[%emt 0:00:31][%cal Bh2f3,Bf3d2,Bd2c4,Bc4e3][%mdl 32]} (21... Bxh3 $2 22. Rxh2 Bf6 (22... Bxc3 $2 23. Bxc3 f6 24. Rxh3 $18) 23. Rxh3 $18) 22. Qg3 {[%emt 0:00:25]} Nxd2 $1 {[%emt 0:01:13]} (22... Qxh4 $2 23. Qxf3 Qf6 24. f5 $18) 23. fxe5 {[%emt 0:00:44]} Nc4 {[%emt 0:00:41]} 24. Rhg1 {[%emt 0:03:12]} g6 {[%emt 0:00:10]} 25. exd6 $1 {[%emt 0:00:45]} cxd6 {[%emt 0:02:14]} (25... Bxh3 26. Qxh3 Nxd6 27. Qf3 (27. h5 g5 $16) 27... Qxh4 28. Nd5 $11) 26. Nf4 $1 {[%emt 0:00:33][%cal Of4g6]} Qb6 {[%emt 0:01:20][%csl Gc4][%cal Rb6b2]} 27. b3 {[%emt 0:01:33]} Qe3+ {[%emt 0:00:31]} 28. Qxe3 {[%emt 0:01:16]} Nxe3 {[%emt 0:00:04]} 29. Rxd6 {[%emt 0:01:20][%cal Of4g6]} Kf8 {[%emt 0:01:28]} (29... Rf8 $16 30. Nb5 b6) 30. Re1 $2 {[%emt 0:02:56]} (30. Rg3 $18 Ng4 31. Nfd5) 30... Nf5 $1 $11 {[%emt 0:00:46]} 31. Nxg6+ {[%emt 0:03:05] A dynamic duo of knights.} Kg7 {[%emt 0:01:11]} (31... fxg6 $6 32. Rxg6 Kf7 (32... Nxh4 $2 33. Rf1+ $18) 33. h5 $16 (33. Reg1 Nd4 $14)) 32. Rdd1 {[%emt 0:00:47]} fxg6 {[%emt 0:00:13]} 33. exf5 {[%emt 0:00:10]} Bxf5 {[%emt 0:00:12]} 34. Nd5 {[%emt 0:00:22]} (34. Nb5 $11) 34... Rad8 $36 {[%emt 0:00:54][%mdl 2048] Black is on the roll.} 35. c4 {[%emt 0:00:46]} Bg4 {[%emt 0:01:02]} 36. Rxe8 {[%emt 0:01:14]} Rxe8 $15 {[%emt 0:00:03][%mdl 4096] Endgame KRB-KRN} 37. Rd4 {[%emt 0:00:26]} h5 {[%emt 0:01:00]} 38. Nc3 {[%emt 0:00:38]} (38. Kc2 $15) 38... Re1+ $17 {[%emt 0:00:40]} 39. Kd2 {[%emt 0:00:07]} Rh1 {[%emt 0:00:09]} 40. Re4 {[%emt 0:00:42]} (40. Ne4 $17) 40... Rh2+ $19 {[%emt 0:00:40]} 41. Ke3 {[%emt 0:30:32]} Rh3+ {[%emt 0:30:18]} (41... Rxh4 42. Re7+ Kh6 43. Rxb7 $17) 42. Kd2 {[%emt 0:00:00]} b6 {[%emt 0:00:00]} 43. Re7+ {[%emt 0:00:00]} Kf8 {[%emt 0:00:00]} (43... Kh6 $17 44. Rxa7 Rxh4) 44. Rxa7 $11 {[%emt 0:00:00]} Rxh4 {[%emt 0:02:24]} 45. Nd5 {[%emt 0:00:00]} Rh1 {[%emt 0:00:00]} 46. Nf6 {[%emt 0:00:00]} Bf5 {[%emt 0:00:00]} 47. Ke3 {[%emt 0:00:03]} h4 {[%emt 0:00:00]} 48. Nh7+ {[%emt 0:01:14]} Ke8 {[%emt 0:00:00]} 49. Ng5 {[%emt 0:00:32]} h3 {[%emt 0:00:00]} 50. Nf3 {[%emt 0:00:34]} (50. Rh7 $15) 50... Ra1 {[%emt 0:00:00]} (50... Bg4 $142 $1 {[%cal Oh1e1]} 51. Rh7 Bh5 52. Rh8+ Kf7 53. Ng5+ Kf6 54. Nxh3 Rxh3+ 55. Kf2 Rf3+ 56. Kg2 Rc3) 51. Nh2 $2 {[%emt 0:02:11]} (51. Rh7 $17) 51... Rg1 {[%emt 0:00:55]} 52. Nf3 {[%emt 0:00:18]} (52. Ra8+ $142 Ke7 53. Rh8) 52... Rg2 {[%emt 0:00:20]} (52... g5 $19 {has better winning chances.} 53. Ra8+ (53. Nxg1 $2 h2 $19) 53... Kf7 54. Ra7+ (54. Nxg1 $2 h2 $19) 54... Kg6) 53. Rh7 $17 {[%emt 0:00:56] [#]} Rxa2 {[%emt 0:00:39]} (53... Bg4 $142 $1 {[%cal Rg4h5] ...Bh5! is the strong threat.} 54. Rh4 Kf8) 54. Nh4 {[%emt 0:00:22]} Bc2 {[%emt 0:01:58][%cal Oa2b2]} 55. Nf3 {[%emt 0:00:15]} Bxb3 {[%emt 0:00:38]} 56. Kd4 {[%emt 0:00:29] [#]} ({White should play} 56. Rxh3 Bxc4 57. Rh8+ Kf7 58. Ne5+ Kg7 59. Rb8) 56... Rc2 {[%emt 0:00:53]} (56... Ra4 $142 $1 57. Rxh3 Bxc4 (57... Rxc4+ $2 58. Ke5 $19) 58. Rh8+ Ke7) 57. Kd3 {[%emt 0:01:08]} Rxc4 {[%emt 0:00:36]} (57... Bxc4+ $2 {is the wrong capture.} 58. Kxc2 Be6 59. Ng5 Bf5+ 60. Kc3 $18) 58. Nd2 {[%emt 0:00:10] Wards off b5} (58. Ne5 $17 {is a better defense.} Rf4 (58... Rc5 59. Rh8+ Ke7 60. Nxg6+ Kf7 61. Nf4 $15) 59. Rxh3) 58... Rc5 {[%emt 0:00:21]} 59. Nxb3 $4 {[%emt 0:00:39][%mdl 8192]} (59. Rxh3 $17 Bd5 60. Rh7) 59... Rh5 {[%emt 0:00:14]} 0-1

[Event "XTX Markets London Masters 2024"]
[Site "London"]
[Date "2024.11.29"]
[Round "1.19"]
[White "Zhou, Yang-Fan"]
[Black "Marentini, Marcel"]
[Result "1-0"]
[ECO "B56"]
[WhiteElo "2418"]
[BlackElo "2135"]
[Annotator "TA"]
[PlyCount "59"]
[EventDate "2024.11.28"]
[EventType "swiss"]
[EventCountry "ENG"]
[SourceTitle "playchess.com"]
[Source "ChessBase"]
[SourceQuality "1"]
[TimeControl "40/5400+30:1800+30"]

{[%evp 11,59,17,23,14,39,27,31,9,40,37,48,46,46,0,27,40,108,120,114,110,110,113,116,101,118,110,110,110,140,129,136,128,140,127,211,219,300,187,297,264,368,358,345,324,533,433,709,666,1783,1619]} 1. e4 {[%emt 0:00:01]} c5 {[%emt 0:00:17]} 2. Nf3 {[%emt 0:00:05]} d6 {[%emt 0:00:28]} 3. d4 {[%emt 0:00:03]} cxd4 {[%emt 0:00:08]} 4. Nxd4 {[%emt 0:00:06]} Nf6 {[%emt 0:00:08]} 5. Nc3 {[%emt 0:00:04]} a6 {[%emt 0:00:29]} 6. Nb3 {[%emt 0:00:07]} Nc6 {[%emt 0:02:43]} 7. Be3 {[%emt 0:02:36]} e6 {[%emt 0:02:12]} 8. g4 {[%emt 0:00:29]} h6 {[%emt 0:00:12]} 9. h4 {[%emt 0:08:50] White is slightly better.} Be7 {[%emt 0:01:22]} 10. Qe2 {[%emt 0:06:06]} b5 {[%emt 0:02:10][%cal Bb7b5,Bb5b4][%mdl 32]} 11. O-O-O {[%emt 0:01:15]} Qc7 {[%emt 0:00:34]} 12. Rh3 {[%emt 0:05:06]} (12. Rg1 $14) 12... b4 {[%emt 0:17:33]} 13. Na4 {[%emt 0:00:14]} e5 {[%emt 0:02:46] White now steadily converts the win.} (13... Ne5 $14) 14. Nb6 $16 {[%emt 0:04:06]} Rb8 {[%emt 0:00:32] [#]} 15. Nxc8 {[%emt 0:02:56]} Qxc8 {[%emt 0:00:17]} 16. g5 {[%emt 0:14:26]} (16. Qxa6 Nxg4 17. Qe2 Nxe3 18. fxe3 Kf8 $14) 16... hxg5 {[%emt 0:02:27]} 17. hxg5 {[%emt 0:00:08]} (17. Bxg5 $6 a5 $11) 17... Rxh3 {[%emt 0:01:10]} 18. Bxh3 {[%emt 0:00:02]} (18. gxf6 {with more complications.} Bxf6 19. Bxh3 Qxh3 20. Qc4) 18... Qxh3 {[%emt 0:01:44]} 19. gxf6 {[%emt 0:00:05]} gxf6 {[%emt 0:01:16]} 20. Qxa6 {[%emt 0:00:18]} Qc8 {[%emt 0:03:05]} 21. Qd3 $36 {[%emt 0:10:45][%mdl 2048] White is on the roll. White has more active pieces.} Bf8 {[%emt 0:21:21]} 22. Rh1 {[%emt 0:04:22]} Qg4 {[%emt 0:04:13]} (22... Qc7 $16 23. Nd2 Na5) 23. Nd2 $18 {[%emt 0:02:54][%cal Bb3d2,Bd2c4,Bc4d6][%mdl 32]} Rd8 {[%emt 0:05:29]} 24. b3 {[%emt 0:09:19] Threatens to win with f3.} Bg7 {[%emt 0:11:14]} (24... Nd4 {might work better.} 25. Bxd4 exd4) 25. Qb5 {[%emt 0:11:48]} Qc8 {[%emt 0:01:08]} 26. Nc4 {[%emt 0:01:25]} Kf8 {[%emt 0:04:02]} 27. Rd1 {[%emt 0:05:43]} Qa8 $2 {[%emt 0:03:58]} (27... Kg8 28. Bb6 (28. Rxd6 Nd4 $18) (28. Nxd6 Qc7 $18) 28... Nd4 29. Qxb4 (29. Bxd4 exd4 30. Qb6 Re8 $18) 29... Qb7 30. Nxd6 Qb8) 28. Rxd6 {[%emt 0:02:19] White is clearly winning.} Rxd6 {[%emt 0:04:05]} (28... Nd4 $142 29. Rxd8+ (29. Qxb4 Kg8 $18) 29... Qxd8 30. Qxb4+ Kg8) 29. Nxd6 {[%emt 0:00:04] [#] Strongly threatening Qd5.} Nd4 {[%emt 0:00:41]} 30. Qd7 {[%emt 0:03:41] Weighted Error Value: White=0.18 (very precise) /Black=0.46.  Mistake:       	White=1     	Black=5      Inaccurate:     	White=1     	Black=5      OK:         	White=12    	Black=7      Best:        	White=1     	---} 1-0

[Event "XTX Markets London Masters 2024"]
[Site "London"]
[Date "2024.11.29"]
[Round "1.20"]
[White "Subramanian, Anusha"]
[Black "Golding, Alex"]
[Result "0-1"]
[ECO "D00"]
[WhiteElo "2131"]
[BlackElo "2404"]
[Annotator "TA"]
[PlyCount "80"]
[EventDate "2024.11.28"]
[EventType "swiss"]
[EventCountry "ENG"]
[SourceTitle "playchess.com"]
[Source "ChessBase"]
[SourceQuality "1"]
[TimeControl "40/5400+30:1800+30"]

{[%evp 9,80,-4,0,-4,-6,6,2,-2,10,0,7,-39,-33,-38,-33,-40,-33,-28,-22,-86,-76,-84,-80,-143,-95,-146,-134,-143,-117,-111,-78,-174,-107,-122,-130,-185,-169,-200,-177,-216,-176,-222,-217,-229,-221,-231,-225,-220,-228,-220,-216,-218,-223,-212,-159,-258,-261,-265,-258,-379,-409,-958,-922,-2114,-1850,-29990,-29991,-29991,-29992,-29997,-29998,-29998,-29999]} 1. d4 {[%emt 0:00:03]} Nf6 {[%emt 0:00:07]} 2. Bg5 {[%emt 0:00:05]} d5 {[%emt 0:00:13]} 3. e3 {[%emt 0:00:05]} h6 {[%emt 0:05:04]} 4. Bh4 {[%emt 0:02:30]} Nbd7 {[%emt 0:01:44]} 5. Nd2 {[%emt 0:01:51]} e6 {[%emt 0:01:27]} 6. Bd3 {[%emt 0:03:46]} c5 {[%emt 0:00:55]} 7. c3 {[%emt 0:00:56]} Qb6 {[%emt 0:00:59]} 8. Rb1 {[%emt 0:02:16]} e5 {[%emt 0:02:27][%cal Re5d4]} 9. dxe5 {[%emt 0:07:37]} Nxe5 {[%emt 0:00:07]} 10. Ndf3 {[%emt 0:04:38]} (10. Bc2 $11) 10... Nxd3+ $15 {[%emt 0:00:48]} 11. Qxd3 {[%emt 0:00:08]} Be7 {[%emt 0:04:00]} 12. Ne2 {[%emt 0:03:29]} g6 {[%emt 0:02:49]} 13. Bxf6 {[%emt 0:08:53]} Bxf6 {[%emt 0:00:11]} 14. Ng3 {[%emt 0:05:23] Dodges Bf5} (14. Qd2 $11 {keeps the balance.}) 14... Bd7 {[%emt 0:03:17]} 15. Qd2 {[%emt 0:06:56][%cal Oe1g1]} Bb5 {[%emt 0:05:32]} 16. h4 {[%emt 0:03:48]} (16. b4 $142) 16... h5 {[%emt 0:06:17]} (16... O-O-O $142 17. h5 g5) 17. Rd1 {[%emt 0:05:49]} ({White should play} 17. Qxd5 Rd8 18. Qb3 (18. Qe4+ Kf8 $15)) 17... Rd8 $17 {[%emt 0:04:03]} 18. Ne2 {[%emt 0:03:27]} O-O {[%emt 0:01:51]} 19. O-O {[%emt 0:04:39]} Qe6 {[%emt 0:03:08]} 20. b4 {[%emt 0:11:47]} (20. Nf4 $17 Qf5 21. Nxd5 (21. Rfe1 Bc6 $17)) 20... b6 {[%emt 0:00:21]} ({Better is} 20... Qa6 $19 21. Rfe1 Bxe2 22. Qxe2 (22. Rxe2 $2 Bxc3 23. Qc2 Bxb4 $19) 22... Bxc3 23. Qxa6 bxa6 24. bxc5 Bxe1 25. Nxe1 Rb8) 21. Rb1 {[%emt 0:07:04]} Bc6 {[%emt 0:00:06] Black is much more active. This pair of bishops is nice.} 22. b5 {[%emt 0:01:09]} (22. bxc5 $17 bxc5 23. Nf4) 22... Bb7 {[%emt 0:00:07]} 23. Ng3 {[%emt 0:09:15]} Qg4 {[%emt 0:00:47]} 24. Qc2 {[%emt 0:01:28]} Rfe8 {[%emt 0:00:30]} 25. Rfe1 {[%emt 0:01:08]} (25. Rb3) 25... Bxh4 $19 {[%emt 0:01:18]} 26. Nxh4 {[%emt 0:00:28]} Qxh4 {[%emt 0:00:06]} 27. Rbd1 {[%emt 0:03:23]} Qg5 {[%emt 0:00:34]} 28. Nf1 {[%emt 0:00:39] [#]} d4 $1 {[%emt 0:03:53][%csl Gb7][%cal Rg5g2][%mdl 512]} 29. f4 {[%emt 0:00:15]} (29. e4 dxc3) 29... Qf6 {[%emt 0:00:11]} ({But not} 29... Be4 $2 30. Qxe4 (30. fxg5 $2 {too greedy.} Bxc2 31. Rd2 d3 $19) 30... Rxe4 31. fxg5 $18) 30. cxd4 {[%emt 0:00:29]} cxd4 {[%emt 0:00:08]} 31. Qc7 {[%emt 0:01:13]} Be4 {[%emt 0:03:22] Threatens to win with ...Rc8.} 32. Ng3 {[%emt 0:01:12]} (32. exd4 $17 Rxd4 33. Ng3) 32... d3 {[%emt 0:03:23]} 33. Nxe4 {[%emt 0:00:39]} Rxe4 {[%emt 0:00:06]} 34. Qxa7 {[%emt 0:00:29]} (34. Rd2 {was necessary.}) 34... Qe6 {[%emt 0:08:38]} 35. Kf2 {[%emt 0:00:26]} (35. Qc7 $142 Rd6 36. Kh2) 35... Rc4 {[%emt 0:01:53] ( -> ...Rc2+)} 36. Rd2 {[%emt 0:00:13]} Rc2 {[%emt 0:00:42]} 37. Red1 {[%emt 0:00:27]} Re8 {[%emt 0:00:13]} 38. e4 {[%emt 0:00:54]} Qxe4 {[%emt 0:00:09]} 39. Qxb6 {[%emt 0:00:26]} Rxd2+ {[%emt 0:00:23]} 40. Rxd2 {[%emt 0:00:07]} Qxf4+ {[%emt 0:00:04]} 0-1

[Event "XTX Markets London Masters 2024"]
[Site "London"]
[Date "2024.11.29"]
[Round "1.21"]
[White "Pert, Richard G"]
[Black "Smith, Olivia"]
[Result "1/2-1/2"]
[ECO "A49"]
[WhiteElo "2399"]
[BlackElo "2129"]
[Annotator "TA"]
[PlyCount "47"]
[EventDate "2024.11.28"]
[EventType "swiss"]
[EventCountry "ENG"]
[SourceTitle "playchess.com"]
[Source "ChessBase"]
[SourceQuality "1"]
[TimeControl "40/5400+30:1800+30"]

{[%evp 9,47,13,23,-6,12,0,0,-18,0,0,0,0,25,0,12,-1,28,0,0,-20,0,0,16,5,0,0,0,-19,-29,-58,-63,-89,-44,-54,-28,-27,0,-38,0,-31]} 1. d4 {[%emt 0:00:11]} Nf6 {[%emt 0:00:34]} 2. Nf3 {[%emt 0:00:07]} g6 {[%emt 0:00:13]} 3. g3 {[%emt 0:00:07]} Bg7 {[%emt 0:00:16]} 4. Bg2 {[%emt 0:00:12]} c5 {[%emt 0:00:20]} 5. dxc5 {[%emt 0:01:12]} Qa5+ {[%emt 0:00:26]} 6. c3 {[%emt 0:09:01]} Qxc5 {[%emt 0:01:17]} 7. Be3 {[%emt 0:00:32]} Qc7 {[%emt 0:03:34]} 8. Na3 {[%emt 0:01:06][%cal Bb1a3,Ba3b5,Bb5d4][%mdl 32]} O-O {[%emt 0:07:40]} 9. O-O {[%emt 0:01:12]} Nc6 {[%emt 1:20:40]} 10. Nb5 {[%emt 0:02:01]} Qa5 {[%emt 0:00:00]} 11. a4 {[%emt 0:00:31]} d6 {[%emt 0:00:00]} 12. Rc1 {[%emt 0:13:14]} (12. b4 $5 Qd8 $8 13. Nfd4 $11) 12... Bd7 {[%emt 0:00:00]} 13. b4 {[%emt 0:01:37]} Qd8 {[%emt 0:00:00]} 14. Qb3 {[%emt 0:00:25]} a6 {[%emt 0:00:00]} 15. Nbd4 {[%emt 0:01:42]} Ng4 {[%emt 0:00:00]} 16. Bd2 {[%emt 0:02:21]} Rc8 {[%emt 0:00:00]} 17. h3 {[%emt 0:08:30] Nxc6 is the strong threat.} Nf6 {[%emt 0:00:00]} 18. Rfd1 {[%emt 0:03:21]} Nxd4 {[%emt 0:00:00]} 19. Nxd4 {[%emt 0:07:45]} e5 {[%emt 0:00:00]} 20. Nf3 {[%emt 0:00:28]} Be6 {[%emt 0:00:00]} 21. Qc2 {[%emt 0:02:47]} Bf5 {[%emt 0:00:00]} 22. Qb3 {[%emt 0:05:02]} Be6 {[%emt 0:00:00]} 23. Qc2 $1 {[%emt 0:01:47]} Bf5 {[%emt 0:00:00]} 24. Qb3 {[%emt 0:02:33]} 1/2-1/2

[Event "XTX Markets London Masters 2024"]
[Site "London"]
[Date "2024.11.29"]
[Round "1.22"]
[White "Kovalskyi, Roman"]
[Black "Efroimski, Marsel"]
[Result "0-1"]
[ECO "C54"]
[WhiteElo "2124"]
[BlackElo "2397"]
[Annotator "TA"]
[PlyCount "114"]
[EventDate "2024.11.28"]
[EventType "swiss"]
[EventCountry "ENG"]
[SourceTitle "playchess.com"]
[Source "ChessBase"]
[SourceQuality "1"]
[TimeControl "40/5400+30:1800+30"]

{[%evp 13,114,14,8,-18,-12,-11,-10,-13,-11,-17,-22,-38,-33,-33,-32,-36,-43,-91,-86,-85,-20,-50,-54,-83,-8,-32,-10,-12,-21,-72,5,0,0,6,89,35,30,43,74,29,77,0,94,88,208,36,52,16,23,23,37,30,52,0,0,0,0,0,0,0,0,0,0,0,0,0,0,-53,-44,-62,0,0,0,-316,-317,-310,-276,-421,-353,-380,-427,-408,-400,-425,-417,-421,-408,-540,-523,-482,-363,-782,-721,-755,-762,-731,-739,-981,-954,-839,-743,-759,-702]} 1. e4 {[%emt 0:06:13]} e5 {[%emt 0:01:58]} 2. Nf3 {[%emt 0:00:20]} Nc6 {[%emt 0:00:04]} 3. Bc4 {[%emt 0:00:08]} Bc5 {[%emt 0:00:05]} 4. c3 {[%emt 0:00:12]} Nf6 {[%emt 0:00:04]} 5. d3 {[%emt 0:00:06]} d6 {[%emt 0:00:24]} 6. O-O {[%emt 0:01:17]} O-O {[%emt 0:00:05]} 7. a4 {[%emt 0:00:45]} a5 {[%emt 0:01:08]} 8. Be3 {[%emt 0:01:19]} Bxe3 {[%emt 0:03:20]} 9. fxe3 {[%emt 0:00:11]} Ne7 {[%emt 0:00:21]} 10. Nbd2 {[%emt 0:09:45]} c6 {[%emt 0:00:22]} 11. Ba2 {[%emt 0:00:09]} Ng6 {[%emt 0:03:00]} 12. Nc4 {[%emt 0:02:41]} Qc7 {[%emt 0:04:27]} 13. Qb3 {[%emt 0:06:15]} Ra6 {[%emt 0:08:26]} 14. Qa3 {[%emt 0:14:12]} Rd8 $1 {[%emt 0:07:28]} 15. b4 {[%emt 0:02:14]} (15. Ncd2 $15) 15... axb4 $1 $17 {[%emt 0:06:47]} 16. cxb4 {[%emt 0:08:08]} d5 {[%emt 0:16:25]} (16... b5 $17 {[%cal Oa6a4] and ...Rxa4! should not be overlooked} 17. Na5 bxa4) 17. Ncd2 {[%emt 0:22:27]} h6 {[%emt 0:02:43]} 18. exd5 {[%emt 0:06:42]} Nxd5 {[%emt 0:04:21]} (18... cxd5 $17 19. b5 Ra8) 19. d4 {[%emt 0:02:06]} Qe7 {[%emt 0:05:32]} 20. Bxd5 {[%emt 0:08:05]} Rxd5 {[%emt 0:00:19]} (20... cxd5 21. b5 Rad6 22. dxe5 Nxe5 23. Nxe5 Qxe5 24. Nf3) 21. Nb3 {[%emt 0:00:03]} (21. Qc3 $11) 21... e4 {[%emt 0:10:59] Black is more active.} (21... Bg4 $17) 22. Nfd2 $11 {[%emt 0:01:55]} b6 {[%emt 0:02:26] Against Nc5} 23. Qc1 {[%emt 0:01:34][%cal Ob4b5] b5! is in the air} Bb7 {[%emt 0:10:22]} (23... Qxb4 $11 24. Qxc6 Be6) 24. Qc4 {[%emt 0:00:51]} (24. Qc3 $16) 24... Nh4 $14 {[%emt 0:02:18]} 25. Rf4 {[%emt 0:01:40]} f5 {[%emt 0:05:31]} 26. a5 {[%emt 0:01:39]} Qg5 {[%emt 0:01:04]} (26... Kh7 $11) 27. Qe2 {[%emt 0:00:15]} (27. Rxh4 $16 Qxh4 28. b5 cxb5 29. Qc7 bxa5 (29... Qg5 $2 30. Qxb7 bxa5 31. Qxd5+ $18) 30. Qxb7) 27... Ng6 {[%emt 0:01:10]} (27... Ra7 $11 {remains equal.}) 28. Rff1 $16 {[%emt 0:00:42]} Qe7 {[%emt 0:01:27]} (28... Bc8 $16 {is a better defense.}) 29. Qc4 $2 {[%emt 0:02:28]} ({White must play} 29. Nc4 $1 $18 {[%cal Rc4b6]}) 29... Kh7 $1 $14 {[%emt 0:00:58]} 30. axb6 {[%emt 0:00:15]} Rxb6 {[%emt 0:00:29]} 31. Nc5 {[%emt 0:00:24]} Bc8 {[%emt 0:00:48]} 32. Ra8 {[%emt 0:00:48]} Be6 {[%emt 0:00:12]} 33. Nxe6 {[%emt 0:00:18]} (33. Qc3 $14) 33... Qxe6 $11 {[%emt 0:00:12]} 34. Nb3 {[%emt 0:00:09]} Qe7 {[%emt 0:01:01][%cal Oe7g5]} 35. Nc5 {[%emt 0:00:49][%cal Of1f5]} Qg5 {[%emt 0:00:56]} 36. Qc3 {[%emt 0:00:51]} Nh4 {[%emt 0:00:32][%csl Gh4][%cal Rg5g2]} 37. Rf2 {[%emt 0:00:15]} Nf3+ {[%emt 0:00:37]} 38. Kh1 {[%emt 0:00:04][%cal Oc5e6]} Qh4 $40 {[%emt 0:00:14][%csl Gf3,LRf2,LRh2][%cal Rh4h2][%mdl 128] Black is up to no good.} 39. g3 {[%emt 0:00:19]} Qf6 {[%emt 0:00:48]} 40. Re8 {[%emt 0:01:18]} ({White should try} 40. Rfa2 $11) 40... Qf7 $15 {[%emt 0:00:33]} 41. Rc8 {[%emt 0:07:44]} Qa7 {[%emt 0:07:30]} (41... Rd6 $15) 42. Ne6 $11 {[%emt 0:11:43] Strongly threatening Nf8+.} Qa4 {[%emt 0:04:52]} 43. Rc2 $2 {[%emt 0:01:32][%mdl 8192] [#]} (43. Qc1 $11 Ra6 44. Nf8+ (44. Rc7 Ra7 $11) 44... Kg8 45. Ng6+ Kh7 46. Nf8+) 43... Qa6 $1 $19 {[%emt 0:01:33][%cal Ra6f1]} 44. Nf8+ {[%emt 0:10:30]} (44. Rxc6 $2 Qf1#) 44... Kg8 {[%emt 0:00:08][%cal Ra6f1]} 45. Ng6+ {[%emt 0:00:03]} (45. Qc4 {was the only defense.} Qxc8 46. Qxd5+ cxd5 47. Rxc8 Rxb4 48. Nd7+ Kf7 49. Rc7) 45... Kf7 $1 {[%emt 0:00:19][%cal Ra6f1]} 46. Nh8+ {[%emt 0:00:23] [#]} (46. Rxc6 $2 Qf1#) 46... Ke7 $1 {[%emt 0:00:31]} 47. Qc4 {[%emt 0:00:05]} (47. Rxc6 $2 Qf1#) ({Don't play} 47. Rc7+ Kd8 48. Kg2 (48. Rxg7 $2 Qf1#) (48. b5 $2 Qxb5 49. Qa1 Qb1+ 50. Qxb1 Rxb1+ 51. Kg2 Kxc7 $19) 48... Kxc7) 47... Qxc8 {[%emt 0:01:01]} 48. Qxd5 {[%emt 0:00:03]} cxd5 {[%emt 0:00:18]} (48... Qxh8 $2 {too greedy.} 49. Qc5+ (49. Qxf5 Qb8 $18) 49... Kf6 50. Qxb6 $18) 49. Rxc8 {[%emt 0:00:04]} Rxb4 {[%emt 0:00:14][%mdl 4096] Endgame KRN-KRN. Black is a pawn up.} 50. Ng6+ {[%emt 0:02:21]} Kf6 {[%emt 0:01:34]} 51. Rc6+ {[%emt 0:00:05]} Kf7 {[%emt 0:01:53]} 52. Ne5+ $2 {[%emt 0:01:18]} (52. Kg2 Rb2+ 53. Kf1 Nxh2+ (53... Rxh2 54. Nf4 $17) 54. Ke1) 52... Nxe5 {[%emt 0:00:11]} 53. dxe5 {[%emt 0:00:02]} Rb3 {[%emt 0:00:28]} 54. Rd6 {[%emt 0:00:26]} Rxe3 {[%emt 0:02:15]} 55. Rxd5 {[%emt 0:00:07]} Rd3 {[%emt 0:02:10]} 56. Ra5 {[%emt 0:01:02]} Ke6 {[%emt 0:01:16]} 57. Kg1 {[%emt 0:00:44]} g5 {[%emt 0:02:33]} 0-1